bitfinex-derivatives/quotes_SOLF0:USTF0_20241120
["timestamp","ask_amount","ask_price","bid_price","bid_amount"]
[1732141074311,2.24,237.66,237.58,2.1027]
[1732141074514,2.1023,237.63,237.58,2.1027]
[1732141075914,2.24,237.66,237.52,1.2509]
[1732141076110,14.76701823,237.65,237.53,1.05177813]
[1732141076310,2.1028,237.57,237.54,1.05177813]
[1732141076515,14.76701823,237.65,237.52,1.2509]
[1732141076516,2.22,237.6,237.52,1.2509]
[1732141076718,2.22,237.6,237.53,1.05184856]
[1732141077012,2.22,237.6,237.54,1.05184856]
[1732141077013,2.1028,237.57,237.54,1.05184856]
[1732141077213,2.1028,237.57,237.52,1.2509]
[1732141077414,2.1028,237.57,237.53,1.05185516]
[1732141077613,2.1028,237.57,237.54,1.05185516]
[1732141077814,2.1028,237.57,237.52,1.2509]
[1732141078109,2.1028,237.57,237.53,1.05185701]
[1732141078307,2.1028,237.57,237.54,1.05185701]
[1732141078511,2.1028,237.57,237.55,1.05185701]
[1732141078812,2.1028,237.57,237.52,3.3541]
[1732141079009,2.1028,237.57,237.53,1.05185666]
[1732141079210,2.1027,237.58,237.53,2.1032]
[1732141079408,2.22,237.6,237.54,1.05185628]
[1732141079607,2.22,237.6,237.55,1.05185628]
[1732141079811,2.22,237.6,237.53,2.1032]
[1732141080013,2.22,237.6,237.54,1.05185318]
[1732141080212,2.22,237.6,237.55,1.05185318]
[1732141080414,2.22,237.6,237.53,2.1032]
[1732141080610,2.22,237.6,237.54,1.05185436]
[1732141080811,2.22,237.6,237.53,2.1032]
[1732141081011,2.22,237.6,237.54,1.05185414]
[1732141081211,2.1027,237.59,237.55,1.05185414]
[1732141081417,2.1027,237.59,237.53,2.1032]
[1732141081620,2.1027,237.59,237.54,1.05186188]
[1732141081818,2.1027,237.59,237.55,1.05186188]
[1732141082021,2.1027,237.59,237.53,2.1032]
[1732141082318,2.1027,237.59,237.54,1.05185876]
[1732141082516,2.1027,237.59,237.55,1.05185876]
[1732141082820,2.1027,237.59,237.53,2.1032]
[1732141083421,2.1027,237.59,237.52,1.2509]
[1732141083721,2.1027,237.59,237.54,2.1031]
[1732141083913,2.1027,237.59,237.55,1.05186248]
[1732141084419,2.1027,237.59,237.53,2.1031]
[1732141084711,2.1029,237.57,237.54,1.05185743]
[1732141085415,2.1029,237.57,237.51,2.1033]
[1732141085618,2.1029,237.57,237.52,1.0519559]
[1732141085816,2.1027,237.58,237.52,2.1032]
[1732141086018,2.1027,237.58,237.53,1.05196207]
[1732141086214,2.22,237.6,237.52,2.1032]
[1732141086521,2.1028,237.57,237.53,1.05196188]
[1732141086722,2.1028,237.57,237.52,2.1032]
[1732141086922,2.1028,237.57,237.53,1.05196157]
[1732141087116,2.1028,237.57,237.52,2.1032]
[1732141087620,2.1028,237.57,237.53,1.05196095]
[1732141087823,2.1028,237.57,237.52,2.1032]
[1732141088016,2.1028,237.57,237.53,1.05197483]
[1732141088217,2.1028,237.57,237.52,2.1032]
[1732141088421,2.1028,237.57,237.53,1.05197587]
[1732141088618,2.1028,237.57,237.52,2.1032]
[1732141088819,2.1028,237.57,237.53,1.05196949]
[1732141089114,2.1027,237.58,237.52,2.1032]
[1732141089319,2.1027,237.58,237.53,1.0519754]
[1732141089519,2.1027,237.58,237.54,1.0519754]
[1732141089714,2.22,237.6,237.52,2.1032]
[1732141089715,2.1028,237.57,237.52,2.1032]
[1732141089922,2.1028,237.57,237.53,1.05197222]
[1732141090117,2.1028,237.57,237.54,1.05197222]
[1732141090314,2.1028,237.57,237.52,2.1032]
[1732141090616,2.1028,237.57,237.53,1.05196252]
[1732141091023,2.1028,237.57,237.54,1.05196252]
[1732141091324,2.1028,237.57,237.55,1.05196252]
[1732141091525,2.1028,237.57,237.52,2.1032]
[1732141091721,2.1028,237.57,237.53,1.05196252]
[1732141092029,2.1028,237.57,237.54,1.05196252]
[1732141092326,2.1028,237.57,237.55,1.05196252]
[1732141092529,2.1028,237.57,237.52,2.1032]
[1732141092723,2.1028,237.57,237.53,1.05196252]
[1732141092925,2.22,237.6,237.54,1.05196252]
[1732141093119,2.22,237.6,237.48,2.1035]
[1732141093323,2.22,237.6,237.49,1.05196716]
[1732141093528,2.1032,237.53,237.5,1.05196716]
[1732141093725,2.22,237.54,237.51,1.05196716]
[1732141094025,12.64,237.6,237.45,1.2324]
[1732141094026,2.22,237.53,237.45,1.2324]
[1732141094233,2.22,237.53,237.46,1.05198355]
[1732141094422,2.22,237.53,237.47,1.05198355]
[1732141094625,2.22,237.53,237.48,1.05198355]
[1732141094828,2.22,237.53,237.47,2.1037]
[1732141095023,2.22,237.53,237.49,1.05198709]
[1732141095326,2.22,237.53,237.5,1.05198709]
[1732141095530,2.22,237.53,237.51,1.05198709]
[1732141095725,2.22,237.53,237.52,1.05198709]
[1732141095925,4.3232,237.53,237.52,1.05198709]
[1732141096123,2.1032,237.53,237.52,1.05198709]
[1732141096320,2.22,237.57,237.52,1.05198709]
[1732141096522,2.22,237.57,237.53,1.05198709]
[1732141096726,2.22,237.57,237.54,1.05198709]
[1732141096927,2.22,237.57,237.55,1.05198709]
[1732141097127,2.22,237.57,237.56,1.05198709]
[1732141097428,1.2831,237.63,237.56,1.05195162]
[1732141097625,2.22,237.59,237.52,2.1032]
[1732141097819,2.22,237.59,237.48,2.22]
[1732141098025,2.1027,237.58,237.49,1.05194388]
[1732141098219,2.1027,237.58,237.5,1.05194388]
[1732141098427,2.1027,237.58,237.51,1.05194388]
[1732141098626,2.1027,237.58,237.52,1.05194388]
[1732141098926,2.1027,237.58,237.53,1.05194388]
[1732141099125,2.1027,237.58,237.54,1.05194388]
[1732141099335,2.1027,237.58,237.55,1.05194388]
[1732141099627,2.1027,237.58,237.56,1.05194388]
[1732141099831,2.1027,237.58,237.57,1.05194388]
[1732141100530,2.1027,237.58,237.52,2.1032]
[1732141100725,2.1029,237.56,237.53,1.05189477]
[1732141101025,14.86,237.6,237.54,1.05189477]
[1732141101229,2.22,237.6,237.45,1.2324]
[1732141101429,2.22,237.6,237.47,2.1037]
[1732141101737,2.22,237.6,237.48,1.0519651]
[1732141101931,2.1032,237.54,237.49,1.05196616]
[1732141102127,2.1032,237.54,237.5,1.05196616]
[1732141102429,2.22,237.6,237.51,1.05196616]
[1732141102630,2.1032,237.53,237.52,1.05196616]
[1732141104125,2.22,237.58,237.52,1.05196616]
[1732141104322,1.2831,237.63,237.53,1.05196616]
[1732141104323,2.22,237.6,237.53,1.05196616]
[1732141104531,2.22,237.6,237.54,1.05196616]
[1732141104731,2.1028,237.58,237.55,1.05196616]
[1732141104931,2.1028,237.58,237.52,2.1032]
[1732141105127,2.22,237.6,237.45,1.2324]
[1732141105329,2.22,237.6,237.53,1.05189164]
[1732141105630,2.22,237.6,237.46,1.05189164]
[1732141105935,2.1028,237.58,237.5,2.1033]
[1732141106134,2.1028,237.58,237.51,1.05189164]
[1732141106332,2.22,237.6,237.52,1.05189164]
[1732141106531,2.1028,237.57,237.53,1.05189164]
[1732141106733,2.1028,237.57,237.54,1.05189164]
[1732141106935,2.1028,237.57,237.55,1.05189164]
[1732141107135,2.1028,237.57,237.51,2.1033]
[1732141107332,2.1028,237.57,237.52,3.15510282]
[1732141107538,2.22,237.6,237.53,1.05190282]
[1732141107743,14.86,237.6,237.41,1.3201]
[1732141108037,14.86,237.6,237.47,2.1037]
[1732141108229,2.1032,237.53,237.48,1.05199719]
[1732141108435,14.86,237.6,237.49,1.05199719]
[1732141108731,14.86,237.6,237.5,1.05199719]
[1732141108938,2.1032,237.53,237.51,1.05199719]
[1732141109130,2.22,237.54,237.52,1.05199719]
[1732141109440,2.1036,237.48,237.41,1.3201]
[1732141109737,2.22,237.54,237.42,3.15619387]
[1732141109937,2.1037,237.48,237.43,1.05209387]
[1732141110236,2.1037,237.48,237.44,1.05209387]
[1732141110433,2.1037,237.48,237.45,1.05209387]
[1732141110634,2.1037,237.48,237.46,1.05209387]
[1732141110830,2.1036,237.48,237.47,1.05209387]
[1732141111039,2.22,237.5,237.41,1.3201]
[1732141111236,2.1036,237.48,237.42,1.05224834]
[1732141111433,2.22,237.5,237.43,1.05224834]
[1732141111634,2.22,237.5,237.44,1.05224834]
[1732141111944,2.1038,237.46,237.45,1.05224834]
[1732141112939,12.64,237.6,237.45,1.05224834]
[1732141113141,2.90236904,237.59,237.46,1.05224834]
[1732141113337,13.847,237.64,237.47,3.15584834]
[1732141113539,2.1031,237.54,237.48,1.05224834]
[1732141113743,2.1031,237.54,237.49,1.05224834]
[1732141113937,2.1031,237.54,237.43,1.2786]
[1732141113938,2.22,237.56,237.5,1.05224834]
[1732141114140,2.22,237.56,237.51,1.05203081]
[1732141114441,2.22,237.56,237.48,2.1036]
[1732141114639,2.1031,237.54,237.49,1.05202657]
[1732141114835,12.64,237.61,237.5,1.05202657]
[1732141115135,12.64,237.61,237.43,1.2786]
[1732141115136,2.1027,237.58,237.43,1.2786]
[1732141115337,2.1027,237.58,237.47,2.22]
[1732141115542,2.1027,237.58,237.52,2.1032]
[1732141115746,2.1027,237.58,237.48,1.05197617]
[1732141115941,2.22,237.6,237.49,1.05197617]
[1732141116142,2.22,237.6,237.5,3.46697617]
[1732141116338,2.22,237.6,237.51,1.05197617]
[1732141116541,4.3225,237.6,237.54,2.103]
[1732141116742,4.3225,237.6,237.55,1.05197617]
[1732141116939,4.3225,237.6,237.54,2.103]
[1732141117142,4.3225,237.6,237.55,1.05190914]
[1732141117347,4.3225,237.6,237.54,2.103]
[1732141117547,4.3225,237.6,237.55,1.05191395]
[1732141117748,4.3225,237.6,237.54,2.103]
[1732141117948,4.3225,237.6,237.55,1.05191018]
[1732141118250,4.3225,237.6,237.54,2.103]
[1732141118747,4.3225,237.6,237.55,1.05191586]
[1732141119047,4.3225,237.6,237.56,1.05191254]
[1732141119251,4.3225,237.6,237.54,2.103]
[1732141119443,4.3225,237.6,237.55,1.05190906]
[1732141119640,4.3225,237.6,237.56,1.05190906]
[1732141119843,4.3225,237.6,237.57,1.05190906]
[1732141120048,4.3225,237.6,237.58,1.05190906]
[1732141120346,4.3225,237.6,237.54,2.103]
[1732141120545,4.3225,237.6,237.55,1.05180875]
[1732141120847,4.3225,237.6,237.56,1.05180875]
[1732141121157,4.3225,237.6,237.57,1.05180875]
[1732141121345,4.3225,237.6,237.58,1.05180875]
[1732141121656,4.3225,237.6,237.54,2.103]
[1732141121945,13.8941,237.69,237.55,1.05183882]
[1732141122143,2.22,237.66,237.56,1.05183882]
[1732141122344,2.22,237.66,237.57,1.05183882]
[1732141122651,2.22,237.66,237.58,1.05183882]
[1732141122843,2.22,237.66,237.59,1.05171047]
[1732141123154,2.22,237.66,237.6,1.05171047]
[1732141123451,2.22,237.66,237.54,1.2267]
[1732141123646,2.22,237.66,237.55,1.05169714]
[1732141123847,2.22,237.66,237.56,1.05169714]
[1732141124042,2.22,237.66,237.57,1.05169714]
[1732141124248,2.1022,237.64,237.58,3.15439714]
[1732141124451,2.1022,237.64,237.59,1.05169714]
[1732141124651,2.1022,237.64,237.6,1.05170205]
[1732141124948,2.1022,237.64,237.58,2.1027]
[1732141125252,2.1022,237.64,237.59,1.0517024]
[1732141125554,2.1022,237.64,237.58,2.1027]
[1732141125752,2.1022,237.64,237.6,1.0516983]
[1732141125946,2.1022,237.64,237.58,2.1027]
[1732141126252,2.1022,237.64,237.59,1.05169627]
[1732141126447,2.1022,237.64,237.6,1.05169627]
[1732141126646,2.22,237.66,237.54,3.3297]
[1732141126949,2.22,237.66,237.55,1.05173376]
[1732141127151,2.22,237.66,237.56,1.05173376]
[1732141127350,2.22,237.66,237.54,3.3297]
[1732141127351,2.22,237.66,237.57,1.05173376]
[1732141127545,2.22,237.66,237.58,1.05173376]
[1732141127748,2.22,237.66,237.59,1.05173376]
[1732141127945,2.22,237.66,237.54,3.3297]
[1732141128147,2.22,237.66,237.55,1.05176057]
[1732141128348,2.22,237.66,237.54,3.3297]
[1732141128651,2.22,237.66,237.55,1.05176057]
[1732141128850,2.1028,237.57,237.56,1.05176057]
[1732141129057,2.22,237.66,237.56,1.05176057]
[1732141129259,2.1022,237.64,237.57,1.05176057]
[1732141129455,2.22,237.66,237.58,1.05176057]
[1732141129758,2.22,237.66,237.54,2.103]
[1732141129958,2.22,237.66,237.55,3.15470568]
[1732141130154,2.22,237.66,237.56,1.05180568]
[1732141130456,2.22,237.66,237.57,1.05180568]
[1732141130652,2.1026,237.6,237.55,2.1029]
[1732141130952,2.1026,237.6,237.56,1.05180592]
[1732141131258,2.1026,237.6,237.53,2.1031]
[1732141131259,2.1026,237.6,237.57,1.05180592]
[1732141131554,2.1026,237.6,237.5,2.415]
[1732141131555,2.1026,237.6,237.54,2.1031]
[1732141131755,2.1026,237.6,237.55,1.05181289]
[1732141131956,2.1029,237.56,237.5,2.415]
[1732141132153,2.1029,237.56,237.51,1.05187966]
[1732141132356,2.1029,237.56,237.52,1.05187966]
[1732141132554,2.1027,237.58,237.53,1.05187966]
[1732141132757,2.22,237.6,237.54,1.05187966]
[1732141132956,2.22,237.6,237.5,4.5184]
[1732141133159,2.22,237.6,237.51,1.05192879]
[1732141133458,2.22,237.6,237.52,1.05192879]
[1732141133659,2.22,237.6,237.53,1.05192879]
[1732141133859,2.22,237.6,237.54,1.05192879]
[1732141134161,2.22,237.6,237.5,4.5184]
[1732141134460,2.22,237.6,237.51,1.05193858]
[1732141134660,2.22,237.6,237.52,1.05193858]
[1732141135064,2.1031,237.55,237.53,1.05193858]
[1732141135360,2.1031,237.55,237.54,1.05193858]
[1732141136660,2.1031,237.55,237.54,1.051938]
[1732141138262,2.22,237.6,237.54,1.051938]
[1732141138469,2.1026,237.59,237.55,1.05186982]
[1732141138758,2.1026,237.59,237.56,3.15476982]
[1732141138964,2.1026,237.59,237.57,1.05186982]
[1732141139163,2.1026,237.6,237.56,2.1029]
[1732141139363,2.1026,237.6,237.57,1.05179016]
[1732141139663,2.1026,237.6,237.58,1.05179001]
[1732141139865,2.1026,237.6,237.55,2.103]
[1732141140062,2.1026,237.6,237.56,1.05179388]
[1732141140265,2.1026,237.6,237.57,1.05179388]
[1732141140463,2.1026,237.6,237.58,1.05179388]
[1732141140764,2.1026,237.6,237.55,2.103]
[1732141140967,2.1026,237.6,237.56,1.05178206]
[1732141141161,2.22,237.61,237.57,1.05179307]
[1732141141461,2.22,237.61,237.55,2.103]
[1732141141462,4.3225,237.61,237.55,2.103]
[1732141141673,4.3225,237.61,237.56,1.05179484]
[1732141141869,2.1026,237.59,237.56,1.05179484]
[1732141142071,2.1026,237.59,237.57,1.05179484]
[1732141142365,2.1026,237.59,237.53,2.1031]
[1732141142564,2.1026,237.59,237.54,3.15490593]
[1732141142867,2.22,237.61,237.55,1.05180593]
[1732141143058,14.85,237.61,237.56,1.05180593]
[1732141143258,2.1031,237.54,237.44,1.2966]
[1732141143461,2.22,237.61,237.45,1.0519517]
[1732141143671,2.22,237.61,237.53,2.1031]
[1732141143866,2.1026,237.59,237.54,1.0519517]
[1732141144168,2.1026,237.59,237.55,1.0519517]
[1732141144466,2.1026,237.59,237.44,2.581]
[1732141144467,2.1027,237.58,237.53,2.1031]
[1732141144669,2.22,237.61,237.54,1.05189495]
[1732141144969,2.22,237.62,237.54,1.05189495]
[1732141145161,2.22,237.62,237.55,1.05189495]
[1732141145361,2.22,237.62,237.56,1.05189495]
[1732141145665,2.1025,237.61,237.49,2.22]
[1732141145962,2.1025,237.61,237.5,1.05182985]
[1732141146166,2.1025,237.61,237.56,2.1029]
[1732141146358,2.1025,237.61,237.57,1.05182947]
[1732141146562,2.1025,237.61,237.56,2.1029]
[1732141146768,2.1025,237.61,237.57,1.05181902]
[1732141146965,2.1025,237.61,237.56,2.1029]
[1732141147168,2.1025,237.61,237.57,1.05181902]
[1732141147359,2.22,237.62,237.54,2.103]
[1732141147564,2.22,237.62,237.49,2.22]
[1732141147769,14.85,237.62,237.55,1.05184672]
[1732141147969,14.85,237.62,237.45,2.22]
[1732141148271,14.85,237.62,237.46,1.05191793]
[1732141148471,2.1031,237.54,237.48,2.1035]
[1732141148663,2.1031,237.54,237.49,1.05191793]
[1732141148862,2.1031,237.54,237.48,2.1035]
[1732141148863,2.1031,237.54,237.5,1.05191793]
[1732141149174,2.1032,237.53,237.51,1.05191793]
[1732141149374,2.1032,237.53,237.52,1.05205357]
[1732141149766,2.1033,237.52,237.47,2.1037]
[1732141149966,2.1033,237.52,237.48,1.05207791]
[1732141150172,2.1033,237.52,237.49,1.05207791]
[1732141150469,2.1033,237.52,237.5,1.05207791]
[1732141150667,2.1033,237.52,237.46,2.1038]
[1732141150867,2.1033,237.52,237.51,1.05210154]
[1732141151064,2.1033,237.52,237.46,2.1038]
[1732141151271,2.1033,237.52,237.47,1.0521025]
[1732141151470,2.1033,237.52,237.48,1.0521025]
[1732141151771,2.1033,237.52,237.49,1.0521025]
[1732141151968,2.11916273,237.53,237.35,5.83963051]
[1732141152273,2.11916273,237.53,237.32,5.83963051]
[1732141152274,1.2749,237.51,237.32,5.83963051]
[1732141152571,2.22,237.5,237.32,2.22]
[1732141152771,14.85,237.5,237.36,2.1046]
[1732141152972,14.85,237.5,237.31,2.5062]
[1732141153567,2.1042,237.41,237.34,2.1048]
[1732141155078,2.22,237.41,237.36,2.1047]
[1732141156170,2.22,237.42,237.37,2.1045]
[1732141156375,2.22,237.42,237.28,3.8094]
[1732141156680,4.3241,237.42,237.28,3.8094]
[1732141156873,2.22,237.42,237.36,2.1046]
[1732141157274,2.1043,237.4,237.28,3.8094]
[1732141157476,2.22,237.42,237.36,2.1046]
[1732141158175,2.1042,237.41,237.36,2.1046]
[1732141158377,2.1042,237.41,237.28,3.8094]
[1732141158780,2.1042,237.41,237.37,2.1046]
[1732141159676,1.2749,237.51,237.32,2.22]
[1732141159874,2.08774693,237.77,237.32,2.22]
[1732141159875,2.22,237.5,237.32,2.22]
[1732141160083,2.22,237.49,237.32,2.22]
[1732141160278,2.1038,237.46,237.41,2.1041]
[1732141160581,2.22,237.49,237.32,2.22]
[1732141161781,2.1041,237.42,237.38,2.1045]
[1732141161976,2.22,237.49,237.32,2.22]
[1732141162574,2.22,237.49,237.28,9.64903051]
[1732141162773,2.22,237.49,237.28,6.0294]
[1732141162975,14.85,237.49,237.28,6.0294]
[1732141163183,2.1046,237.37,237.33,2.1049]
[1732141163387,2.22,237.4,237.28,3.8094]
[1732141163678,2.22,237.39,237.28,3.8094]
[1732141164377,2.1048,237.34,237.31,2.1051]
[1732141164776,2.22,237.39,237.31,2.1051]
[1732141165089,2.1048,237.35,237.31,2.1051]
[1732141165278,2.1048,237.35,237.32,1.05254857]
[1732141165478,2.22,237.39,237.33,1.05254857]
[1732141165679,2.1049,237.34,237.3,2.1052]
[1732141165881,2.1049,237.34,237.31,1.05254658]
[1732141166082,2.1049,237.34,237.32,1.05254658]
[1732141166384,2.1049,237.34,237.33,1.05254658]
[1732141167384,2.1049,237.34,237.33,1.05255555]
[1732141167581,12.63,237.51,237.33,1.05255555]
[1732141167782,2.1048,237.35,237.34,1.05255555]
[1732141168180,4.3246,237.37,237.34,1.05255555]
[1732141168378,4.3246,237.37,237.35,1.05255555]
[1732141168587,4.3246,237.37,237.32,2.1049]
[1732141168786,4.3246,237.37,237.33,3.1574288]
[1732141168988,4.3246,237.37,237.34,1.0525288]
[1732141169287,4.3246,237.37,237.35,1.0525288]
[1732141169485,2.22,237.37,237.33,2.1049]
[1732141169686,2.22,237.37,237.34,1.05253411]
[1732141169885,2.22,237.37,237.35,1.05253411]
[1732141170086,2.22,237.37,237.33,2.1049]
[1732141170287,2.22,237.37,237.34,1.05253321]
[1732141170486,2.22,237.38,237.35,1.05253321]
[1732141170687,2.22,237.38,237.36,1.05253321]
[1732141170885,2.22,237.38,237.34,2.1048]
[1732141171082,2.22,237.38,237.35,1.05250365]
[1732141171289,2.22,237.38,237.34,2.1048]
[1732141171484,2.22,237.38,237.35,1.05249382]
[1732141171687,2.22,237.38,237.34,2.1048]
[1732141171888,2.22,237.38,237.35,1.05250519]
[1732141172189,2.22,237.38,237.34,2.1048]
[1732141172384,2.22,237.38,237.35,1.05250519]
[1732141172588,2.22,237.38,237.34,2.1048]
[1732141172788,2.22,237.38,237.35,1.05250519]
[1732141172989,2.22,237.38,237.34,2.1048]
[1732141173189,2.22,237.38,237.35,1.05250519]
[1732141173492,2.22,237.38,237.34,2.1048]
[1732141173688,2.22,237.38,237.35,1.05250756]
[1732141173896,2.22,237.38,237.34,2.1048]
[1732141174191,2.22,237.38,237.35,1.05250754]
[1732141174394,2.22,237.38,237.34,2.1048]
[1732141174585,2.22,237.38,237.35,1.05251914]
[1732141174893,2.1041,237.43,237.37,2.1045]
[1732141175192,2.22,237.43,237.37,2.1045]
[1732141175493,2.22,237.43,237.36,2.1046]
[1732141175494,2.1042,237.41,237.36,2.1046]
[1732141176387,4.3241,237.42,237.37,3.15707914]
[1732141176594,4.3241,237.42,237.37,2.1046]
[1732141177091,4.3241,237.42,237.36,2.1046]
[1732141177890,4.3241,237.42,237.37,1.05247376]
[1732141178090,2.1042,237.41,237.36,2.1046]
[1732141178288,2.1042,237.41,237.37,1.05246275]
[1732141178493,2.22,237.42,237.3,2.22]
[1732141178795,4.3241,237.42,237.31,1.0524395]
[1732141178994,4.3241,237.42,237.32,1.0524395]
[1732141179188,4.3241,237.42,237.37,2.1046]
[1732141179395,4.3241,237.42,237.38,1.0524395]
[1732141179589,2.09535491,237.48,237.3,2.22]
[1732141179892,2.1042,237.41,237.36,2.1047]
[1732141180097,2.1042,237.41,237.37,1.05243324]
[1732141180298,2.1042,237.41,237.36,2.1047]
[1732141180492,2.1042,237.41,237.37,1.05243833]
[1732141180797,2.1042,237.41,237.36,2.1047]
[1732141181095,2.1042,237.41,237.37,1.05244785]
[1732141181295,2.1042,237.41,237.36,2.1047]
[1732141181599,2.1041,237.43,237.37,1.05243769]
[1732141181897,2.22,237.47,237.38,1.05243769]
[1732141182096,2.22,237.47,237.36,2.1047]
[1732141182297,2.22,237.47,237.37,1.05244976]
[1732141182497,2.22,237.47,237.36,2.1047]
[1732141182698,2.22,237.47,237.37,1.05246142]
[1732141182898,2.22,237.47,237.36,2.1047]
[1732141183092,2.22,237.47,237.37,1.05244247]
[1732141183293,2.22,237.47,237.36,2.1047]
[1732141183294,2.1042,237.41,237.36,2.1047]
[1732141183490,2.22,237.47,237.37,1.052442]
[1732141183696,2.22,237.47,237.35,2.1047]
[1732141183892,2.1043,237.41,237.38,1.05244633]
[1732141184098,2.1043,237.41,237.35,2.1047]
[1732141184799,2.1043,237.41,237.36,1.0524314]
[1732141184996,2.1043,237.41,237.37,1.0524314]
[1732141185198,2.1044,237.39,237.34,2.1048]
[1732141185400,14.85,237.47,237.35,1.05246384]
[1732141185702,2.22,237.46,237.36,1.05246384]
[1732141185904,2.104,237.44,237.37,1.05246384]
[1732141186105,2.22,237.46,237.33,2.1049]
[1732141186307,2.22,237.46,237.34,1.05246804]
[1732141186506,2.1044,237.39,237.35,1.05246804]
[1732141186806,2.1044,237.39,237.36,1.05246804]
[1732141186993,2.1044,237.39,237.33,2.1049]
[1732141187194,2.1044,237.39,237.37,1.05246353]
[1732141187400,2.1044,237.39,237.38,1.05246353]
[1732141188004,2.1043,237.41,237.38,1.05246353]
[1732141188201,2.1043,237.41,237.39,1.05245119]
[1732141188407,2.1043,237.41,237.35,2.1047]
[1732141188408,2.22,237.46,237.35,2.1047]
[1732141188609,2.22,237.46,237.36,1.05246092]
[1732141188805,2.104,237.44,237.37,1.05246092]
[1732141189008,2.22,237.46,237.38,1.05246092]
[1732141189211,2.22,237.46,237.39,1.05246092]
[1732141189407,2.22,237.46,237.35,2.1047]
[1732141189704,2.22,237.46,237.36,1.05245954]
[1732141189910,2.1043,237.41,237.37,1.05245954]
[1732141190204,2.1043,237.41,237.38,1.05245954]
[1732141190403,2.22,237.46,237.35,2.1047]
[1732141190605,2.22,237.46,237.36,1.05242896]
[1732141190806,2.22,237.46,237.37,1.05242896]
[1732141191003,2.22,237.46,237.38,1.05242896]
[1732141191208,2.104,237.44,237.39,1.05242896]
[1732141191408,2.22,237.46,237.4,1.05242896]
[1732141191707,2.22,237.46,237.3,2.22]
[1732141191708,2.1043,237.41,237.3,2.22]
[1732141191907,2.1043,237.41,237.31,1.05246054]
[1732141192103,2.1043,237.41,237.32,1.05246054]
[1732141192310,2.1043,237.41,237.35,2.1047]
[1732141192502,2.22,237.46,237.36,1.05246054]
[1732141192703,2.1043,237.4,237.37,1.05246054]
[1732141193009,2.1043,237.4,237.38,1.05246054]
[1732141193212,2.1043,237.4,237.39,1.05246054]
[1732141193611,2.1043,237.4,237.39,1.05245445]
[1732141193913,2.1043,237.4,237.36,2.1046]
[1732141194212,2.1043,237.4,237.39,1.05245445]
[1732141194409,2.1043,237.4,237.39,2.1049089]
[1732141194608,2.1042,237.41,237.39,2.1049089]
[1732141194911,2.1042,237.41,237.4,1.05245445]
[1732141197112,2.22,237.46,237.4,1.05243891]
[1732141197310,2.22,237.46,237.41,1.05243891]
[1732141197511,2.104,237.43,237.42,1.05243891]
[1732141198010,2.1043,237.4,237.39,1.05245445]
[1732141198215,4.3243,237.4,237.39,1.05245445]
[1732141198608,2.1048,237.35,237.24,2.1057]
[1732141198814,2.22,237.34,237.24,2.1057]
[1732141199114,2.22,237.33,237.24,2.1057]
[1732141199312,2.1052,237.31,237.24,2.1057]
[1732141199508,1.2915,237.45,237.21,1.3099]
[1732141199708,2.1044,237.4,237.21,1.3099]
[1732141199915,2.1044,237.4,237.24,23.35852205]
[1732141200114,1.2915,237.45,237.32,2.1049]
[1732141200315,2.22,237.44,237.27,2.22]
[1732141200616,2.22,237.44,237.28,1.2592]
[1732141200811,2.1043,237.4,237.34,2.1048]
[1732141202614,2.22,237.44,237.3,1.3099]
[1732141202914,2.1046,237.37,237.3,1.3099]
[1732141203316,2.1045,237.39,237.32,2.105]
[1732141203617,2.22,237.44,237.32,2.105]
[1732141204219,2.1045,237.38,237.32,2.105]